[Event "21st Hogeschool Zeeland 2017"]
[Site "Vlissingen"]
[Date "2017.08.07"]
[Round "4"]
[White "Nguyen, Kevin"]
[Black "Breukelman, Jan"]
[Result "1/2-1/2"]
[ECO "B11"]
[WhiteElo "2224"]
[BlackElo "2395"]
[Annotator "RC"]
[PlyCount "54"]
[EventDate "2017.??.??"]
[SourceTitle "playchess.com"]
[Source "ChessBase"]
[SourceQuality "1"]
[TimeControl "40/5400+30:1800+30"]

1. e4 {[%emt 0:00:00]} c6 {[%emt 0:00:04]} 2. Nc3 {[%emt 0:00:00]} d5 {[%emt 0:00:07]} 3. Nf3 {[%emt 0:00:01]} Bg4 {[%emt 0:00:12]} 4. h3 {[%emt 0:00:05]} Bxf3 {[%emt 0:00:06]} 5. Qxf3 {[%emt 0:00:04]} Nf6 {[%emt 0:00:30]} 6. d3 {[%emt 0:00:07]} e6 {[%emt 0:00:10]} 7. Bd2 {[%emt 0:00:04]} Qb6 {[%emt 0:03:57]} 8. O-O-O {[%emt 0:00:51]} d4 {[%emt 0:01:10]} 9. Ne2 {[%emt 0:02:43]} Na6 {[%emt 0:10:06]} 10. g4 {[%emt 0:00:25]} e5 {[%emt 0:16:58]} 11. Kb1 {[%emt 0:11:10]} Nc5 {[%emt 0:03:45]} 12. Nc1 {[%emt 0:00:27]} a5 {[%emt 0:01:30]} 13. Qg3 {[%emt 0:03:02]} Bd6 {[%emt 0:03:34]} 14. f4 {[%emt 0:00:56]} Nfd7 {[%emt 0:04:49]} 15. fxe5 {[%emt 0:01:29]} Bxe5 {[%emt 0:00:33]} 16. Bf4 {[%emt 0:00:52]} Bxf4 {[%emt 0:05:28]} 17. Qxf4 {[%emt 0:03:39]} Na4 {[%emt 0:00:46]} 18. Nb3 Nxb2 {[%emt 0:00:05]} 19. Kxb2 {[%emt 0:01:20]} a4 {[%emt 0:00:08]} 20. Qd6 {[%emt 0:08:32]} axb3 21. axb3 {[%emt 0:01:09]} Nc5 {[%emt 0:06:08]} 22. Ra1 {[%emt 0:20:19]} Rxa1 {[%emt 0:06:06]} 23. Kxa1 {[%emt 0:00:10]} Qa5+ {[%emt 0:30:12]} 24. Kb1 {[%emt 0:00:03]} Qe1+ {[%emt 0:00:07]} 25. Kb2 {[%emt 0:00:11]} Qc3+ {[%emt 0:00:05]} 26. Kb1 {[%emt 0:00:09]} Qe1+ {[%emt 0:02:01]} 27. Kb2 {[%emt 0:00:03]} Qc3+ 1/2-1/2

[Event "21st Hogeschool Zeeland 2017"]
[Site "Vlissingen"]
[Date "2017.08.07"]
[Round "4"]
[White "Klepke, Ricardo"]
[Black "Maatman, Nick"]
[Result "1/2-1/2"]
[ECO "E83"]
[WhiteElo "2205"]
[BlackElo "2386"]
[Annotator "ChessBase"]
[PlyCount "60"]
[EventDate "2017.??.??"]
[SourceTitle "playchess.com"]
[Source "ChessBase"]
[SourceQuality "1"]
[TimeControl "40/5400+30:1800+30"]

1. d4 {[%emt 0:00:00]} Nf6 {[%emt 0:01:47]} 2. c4 {[%emt 0:00:00]} g6 {[%emt 0:01:07]} 3. Nc3 {[%emt 0:00:00]} Bg7 {[%emt 0:00:03]} 4. e4 {[%emt 0:00:32]} d6 {[%emt 0:00:04]} 5. f3 {[%emt 0:00:23]} O-O {[%emt 0:00:16]} 6. Be3 {[%emt 0:00:05]} Nc6 {[%emt 0:00:24]} 7. Nge2 {[%emt 0:01:59]} a6 {[%emt 0:03:29]} 8. Ng3 {[%emt 0:04:05]} Re8 {[%emt 0:11:24]} 9. Be2 {[%emt 0:03:24]} e5 {[%emt 0:03:03]} 10. dxe5 {[%emt 0:02:03]} dxe5 {[%emt 0:01:37]} 11. Qxd8 {[%emt 0:04:56]} Rxd8 {[%emt 0:01:19]} 12. Nd5 {[%emt 0:01:15]} Nxd5 {[%emt 0:02:27]} 13. cxd5 {[%emt 0:00:48]} Nd4 {[%emt 0:02:21]} 14. Rc1 {[%emt 0:05:24]} c6 {[%emt 0:01:27]} 15. Bc4 {[%emt 0:00:37]} b5 {[%emt 0:06:44]} 16. Bxd4 {[%emt 0:01:18]} exd4 {[%emt 0:00:06]} 17. Bb3 {[%emt 0:00:10]} cxd5 {[%emt 0:00:22]} 18. Bxd5 {[%emt 0:00:20]} Ra7 {[%emt 0:00:11]} 19. Ke2 {[%emt 0:21:42]} Be6 {[%emt 0:04:24]} 20. Kd3 {[%emt 0:01:02]} Bxd5 {[%emt 0:00:23]} 21. exd5 {[%emt 0:00:09]} Re7 {[%emt 0:09:04]} 22. Rhe1 {[%emt 0:04:54]} Rxe1 {[%emt 0:00:45]} 23. Rxe1 {[%emt 0:01:20]} Kf8 {[%emt 0:00:19]} 24. Rc1 {[%emt 0:02:15]} Rxd5 {[%emt 0:01:30]} 25. Rc6 {[%emt 0:07:42]} a5 {[%emt 0:09:16]} 26. Ne4 {[%emt 0:02:56]} Be5 {[%emt 0:20:15]} 27. g3 {[%emt 0:07:15]} f5 {[%emt 0:01:12]} 28. Ng5 {[%emt 0:01:44]} h6 {[%emt 0:04:35]} 29. Ne6+ {[%emt 0:01:23]} Kf7 {[%emt 0:00:57]} 30. f4 {[%emt 0:01:48]} Bd6 {[%emt 0:03:05] Ke4} 1/2-1/2